Cogmind - Beta 17 @@@ ROGUE MODE // 2026.07.24 @ 10:40:04 Player: Akl Result: Destroyed by G-34 Mercenary with Small Laser Performance ------------- Evolutions (0) 0 Regions Visited (1) 200 Robots Destroyed (10) 50 Value Destroyed (311) 311 Prototype IDs (0) 0 Alien Tech Used (0) 0 Bonus (0) 0 TOTAL SCORE: 561 Bonus ------- None Cogmind --------- Core Integrity 0/250 Matter 300/300 Energy 160/160 System Corruption 0% Temperature Cool (52) Movement Core (200) Ox3 Location -10/Materials Parts ------- > --- POWER (1) -------- Light Nuclear Core > --- PROPULSION (2) --- (None) > --- UTILITY (2) ------ Small Storage Unit Improved Terrain Scanner > --- WEAPON (2) ------- (None) > --- INVENTORY (8) ---- Ion Engine Terrain Scan Processor Peak State ------------ > --- POWER ------------ Light Nuclear Core > --- PROPULSION ------- Improved Aluminum Leg Wheel > --- UTILITY ---------- Small Storage Unit Improved Terrain Scanner > --- WEAPON ----------- Particle Gun > --- INVENTORY -------- Ion Engine Terrain Scan Processor [Rating: 12] Favorites ----------- Power Light Ion Engine Engine Light Ion Engine Power Core Light Nuclear Core Propulsion Wheel Leg Improved Aluminum Leg Wheel Wheel Utility Small Storage Unit Device Improved Terrain Scanner Storage Small Storage Unit Weapon Medium Laser Energy Gun Medium Laser Ballistic Gun Assault Rifle Special Weapon Mining Laser Build | -11 -10 ------- Run | Yrd Mat Slots Evolved . | . . Power . | . . Propulsion . | . . Utility . | . . Weapon . | . . Parts Attached 15 | 7 8 Power 4 | 1 3 Engine 3 | 1 2 Core 1 | . 1 Reactor . | . . Propulsion 5 | 3 2 Treads . | . . Leg 4 | 2 2 Wheel 1 | 1 . Hover . | . . Flight . | . . Utility 2 | 1 1 Device 1 | . 1 Storage 1 | 1 . Processor . | . . Hackware . | . . Protection . | . . Artifact . | . . Weapon 4 | 2 2 Energy Gun 2 | 1 1 Energy Cannon . | . . Ballistic Gun 1 | 1 . Ballistic Cannon . | . . Launcher . | . . Special Weapon 1 | . 1 Impact Weapon . | . . Slashing Weapon . | . . Piercing Weapon . | . . Special Melee Weapon . | . . Unidentified Prototypes . | . . Parts Lost 6 | . 6 Power . | . . Propulsion 2 | . 2 Utility . | . . Weapon 4 | . 4 Highest Loss Streak 5 | . 5 To Critical Strikes . | . . Average Backups 3 | 1 4 Power 1 | 1 1 Propulsion . | . . Utility 1 | . 1 Weapon . | . . Tool/Special . | . . Unused Backups 2 | . 2 Power 1 | . 1 Propulsion . | . . Utility 1 | . 1 Weapon . | . . Tool/Special . | . . Average Slot Usage (%) 78 | . 78 Engine 11 | . 11 Core 2 | . 2 Leg 13 | . 13 Wheel 12 | . 12 Device 2 | . 2 Storage 14 | . 14 Energy Gun 12 | . 12 Ballistic Gun 8 | . 8 Peak Build Rating 12 | 6 12 Average Rating 6 | 4 7 On Entrance 3 | . 6 Avg Prop Armor Cover (%) 7 | 9 7 Naked Turns . | . . Heaviest Build 14 | 12 14 Greatest Support 20 | 20 13 Greatest Overweight (x) 4 | 1 4 Average Overweight (x) . | . . Largest Inventory Capacity 8 | 8 8 Average Capacity 7 | 6 8 Most Carried 7 | 5 7 Average Carried 3 | 1 4 Final Capacity 8 | 8 8 Final Carried 3 | 3 2 Class Distribution -------------------- 100% | Mutant Dominant Class ---------------- Mutant | -10/Materials Resources | -11 -10 ----------- Run | Yrd Mat Matter Collected 378 | 288 90 Remotely . | . . Salvage Created 431 | 87 344 Parts 21 | 5 16 Haulers Intercepted . | . . Recyclers Shooed 1 | 1 . Parts Field Recycled . | . . Retrieved Matter . | . . Parts Self-Destructed . | . . Prevented . | . . Parts Restored . | . . Kills | -11 -10 ------- Run | Yrd Mat Combat Hostiles Destroyed 8 | . 8 Guns 8 | . 8 Classes Destroyed 3 | 2 1 Tunneler 1 | 1 . Recycler 1 | 1 . Grunt 8 | . 8 Best Kill Streak 7 | 1 7 Combat Bots Only 7 | . 7 Max Kills in Single Turn 1 | 1 1 Gunslinging . | . . Exploded . | . . Melee . | . . Uniques/NPCs Destroyed . | . . Combat | -11 -10 -------- Run | Yrd Mat Hostile Shots Fired 95 | . 95 Missed 17 | . 17 Hits 78 | . 78 Projectile 78 | . 78 Damage Taken 941 | . 941 Core 255 | . 255 Absorbed by Shields . | . . Core Remaining (%) 100 | 100 . Volleys Fired 50 | 6 44 Largest 2 | 2 2 Hottest 100 | 70 100 Shots Fired 66 | 12 54 Gun 64 | 12 52 Cannon . | . . Launcher . | . . Special 2 | . 2 Kinetic 16 | 6 10 Thermal 50 | 6 44 Explosive . | . . Electromagnetic . | . . Robot Hit Streak 8 | 6 8 Robot Miss Streak 3 | 1 3 Penetration Max . | . . Secondary Targets 1 | . 1 Max Gunslinging Chain 1 | . 1 Shots Hit Robots 49 | 9 40 Core Hits 22 | 3 19 Critical Kills . | . . Critical Parts Destroyed . | . . Critical Strikes 3 | . 3 Burn 3 | . 3 Melee Attacks . | . . Impact . | . . Slashing . | . . Piercing . | . . Sneak Attacks . | . . Combat Hostiles . | . . Follow-up Attacks . | . . Damage Inflicted 635 | 112 523 Guns 609 | 112 497 Cannons . | . . Explosions . | . . Melee . | . . Ramming 2 | . 2 Kinetic 146 | 63 83 Thermal 487 | 49 438 Explosive . | . . Electromagnetic . | . . Impact . | . . Slashing . | . . Piercing . | . . Highest Corruption . | . . Average Corruption . | . . Corruption Purged . | . . Corruption Blocked . | . . Overload Shots . | . . Overflow Damage . | . . Projectiles . | . . Explosions . | . . Melee . | . . Knockbacks . | . . Impact . | . . Kinetic . | . . Secondary . | . . Self-Inflicted Damage . | . . Shots . | . . Rammed 5 | . 5 Targets Rammed 5 | . 5 Kicked . | . . Crushed . | . . Highest Temperature 417 | 36 417 Average Temperature 149 | 16 166 Received Heat Transfer 507 | . 507 Effects 5 | . 5 Shutdowns 1 | . 1 Energy Bleed 1 | . 1 Interference 1 | . 1 Damage (minor) 2 | . 2 Siege Activations . | . . Martial Activations . | . . Shielding Activations . | . . Robots Disrupted . | . . Combat Hostiles . | . . Robots Corrupted . | . . Combat Hostiles . | . . Parts Fried . | . . Impact Corruptions . | . . Robots Melted . | . . Combat Hostiles . | . . Parts Melted 5 | . 5 Heat Transferred 1604 | 148 1456 Parts Sabotaged . | . . Parts Stolen . | . . Parts Stripped . | . . Power Chain Reactions . | . . Alert | -11 -10 ------- Run | Yrd Mat Maximum Alert Level . | . . Low Security (%) 100 | 100 100 Level 1 . | . . Level 2 . | . . Level 3 . | . . Level 4 . | . . Level 5 . | . . High Security . | . . Max Security . | . . Peak Influence 165 | 5 165 Initial . | . . Average 44 | 1 56 Influence Increases 245 | 10 235 Destroy 0b10 Robot/C 160 | . 160 Destroy 0b10 Robot/NC 10 | 10 . Destroy Leader 40 | . 40 Successful Hack 5 | . 5 Lose Combat Pursuer 30 | . 30 Influence Decreases 160 | 10 150 Time Decay 100 | 10 90 Lost Part 60 | . 60 Squads Dispatched 3 | . 3 Investigation 1 | . 1 Extermination . | . . Reinforcement 2 | . 2 Assault . | . . Garrison . | . . Intercept . | . . Searches Triggered . | . . Construction Impeded . | . . Haulers Reinforced . | . . Active Scanning Responses . | . . Cargo Convoy Interrupts . | . . Stealth | -11 -10 --------- Run | Yrd Mat Distress Signals 2 | . 2 Communications Jammed . | . . Distress Signals . | . . Times Spotted 17 | . 17 Peak Tracking Total 8 | . 8 Tactical Retreats 1 | . 1 Traps | -11 -10 ------- Run | Yrd Mat Traps Triggered . | . . Indirectly . | . . Trap Hack Attempts . | . . Triggered . | . . Disarmed . | . . Reprogrammed . | . . Reused . | . . Traps Extracted . | . . Installed . | . . Triggered . | . . Machines | -11 -10 ---------- Run | Yrd Mat Machines Disabled . | . . Max in Single Turn . | . . Machines Repaired . | . . Machines Dismantled . | . . Machines Sabotaged . | . . Overloaded Fab Kills . | . . Hacking | -11 -10 --------- Run | Yrd Mat Machines Accessed 1 | . 1 Terminals 1 | . 1 Fabricators . | . . Repair Stations . | . . Recycling Units . | . . Scanalyzers . | . . Garrison Access . | . . Total Hacks 3 | . 3 Successful 1 | . 1 Failed 2 | . 2 Catastrophic 1 | . 1 Database Lockouts . | . . Manual 3 | . 3 Terminals 3 | . 3 Fabricators . | . . Repair Stations . | . . Recycling Units . | . . Scanalyzers . | . . Garrison Access . | . . Terminal Hacks . | . . Fabricator Hacks . | . . Repair Station Hacks . | . . Recycling Unit Hacks . | . . Scanalyzer . | . . Garrison Access Hacks . | . . Unauthorized Hacks 1 | . 1 Terminals 1 | . 1 Botnet 1 | . 1 Fabricators . | . . Repair Stations . | . . Recycling Units . | . . Scanalyzers . | . . Garrison Access . | . . Data Cores Recovered . | . . Used . | . . Hacking Detections 1 | . 1 Full Trace Events 1 | . 1 Feedback Events . | . . Feedback Blocked . | . . Robot Schematics Acquired . | . . Robots Built . | . . Authchips . | . . Time . | . . Total Robot Build Rating . | . . Part Schematics Acquired . | . . Parts Built . | . . Authchips . | . . Time . | . . Total Part Build Rating . | . . Part Studies Acquired . | . . Parts Repaired . | . . Time . | . . Parts Recycled . | . . Recycled Matter . | . . Retrieved Matter . | . . Retrieved Components . | . . Parts Scanalyzed . | . . Part Schematics Acquired . | . . Parts Damaged . | . . Bothacking | -11 -10 ------------ Run | Yrd Mat Used RIF Installer . | . . Robots Hacked . | . . Non-combat . | . . Combat . | . . Robot Hacks Applied . | . . Relay Couplers Released . | . . Fabnet Peak Effective % . | . . Robots Rewired . | . . Allies Hacked . | . . Hacks Repelled . | . . Allies | -11 -10 -------- Run | Yrd Mat Total Allies . | . . Largest Group . | . . Highest-Rated Group . | . . Highest-Rated Ally . | . . Total Orders . | . . Ally Attacks . | . . Total Damage . | . . Kills . | . . Allies Corrupted . | . . Allies Melted . | . . Intel | -11 -10 ------- Run | Yrd Mat Active Infowar (turns) 48 | . 48 Terrain 48 | . 48 Robot Analysis Total . | . . Derelict Logs Recovered . | . . Drone Launches . | . . Drone Recoveries . | . . Exploration | -11 -10 ------------- Run | Yrd Mat Turns Passed 383 | 87 296 Spaces Moved 200 | 62 138 Core 22 | 20 2 Treads . | . . Legs 72 | 10 62 Wheels 106 | 32 74 Hover . | . . Flight . | . . Fastest Speed 50 | 50 80 Average Speed 100 | 83 108 Slowest Speed 250 | 120 250 Overloaded Moves . | . . Propulsion Burnouts . | . . Robots Hopped . | . . Potential Cave-ins . | . . Cave-ins Triggered . | . . Exploration Rate (%) 12 | 3 22 Regions Visited 1 Branch Regions . Pre-discovered Areas . | . . Known Exits Taken . | . . Unknown Exits Taken 1 | 1 . Scrap Searched . | . . Spaces Dug . | . . Terrain Destroyed . | . . Melee . | . . Projectile . | . . AOE . | . . Terrain Rammed . | . . Walls Destroyed . | . . Machines Disabled . | . . Actions | -11 -10 --------- Run | Yrd Mat Total 305 | 85 220 Wait 14 | . 14 Move 199 | 61 138 Hop . | . . Pick Up 16 | 10 6 Fast Attach . | . . Attach 10 | 7 3 Detach . | . . Swap 5 | . 5 Drop 6 | 1 5 Fire 50 | 6 44 Melee . | . . Ram 5 | . 5 Kick . | . . Crush . | . . Escape Stasis . | . . Rewire . | . . Trap . | . . Miscellaneous . | . . Route ------- -11/Scrapyard -10/Materials History --------- Turn | Location | Event 21 | -11/Scrapyard | Discovered new exit (range 15) 88 | -11/Scrapyard | Entered Materials 315 | -10/Materials | Destroyed 7 combat bots 325 | -10/Materials | Core integrity fell below 50% 329 | -10/Materials | Build established: Mutant 371 | -10/Materials | Core integrity fell below 20% 384 | -10/Materials | Destroyed by G-34 Mercenary with Small Laser Last Messages --------------- 00352_ Acquired Particle Gun. 00359_ Wheel destroyed. 00361_ R-06 Scavenger collects Ion Engine. 00364_ R-06 Scavenger collects Aluminum Leg. 00365_ G-34 Mercenary overheating. 00367_ R-06 Scavenger collects Ion Engine. 00367_ Imp. Aluminum Leg destroyed. 00368_ Overheating: System interference. 00368_ Particle Gun temporarily disabled. 00370_ Slammed into G-34 Mercenary. 00370_ R-06 Scavenger collects Imp. Aluminum Leg. 00373_ Slammed into G-34 Mercenary. 00375_ R-06 Scavenger collects Sml. Laser. 00375_ Slammed into G-34 Mercenary. 00378_ R-06 Scavenger collects Lgt. Ion Engine. 00380_ Slammed into G-34 Mercenary. 00382_ Particle Gun destroyed. 00383_ Slammed into G-34 Mercenary. 00384_ G-34 Mercenary heat damages Heat Sink. Map ----- +----------------------------------------------------+ | ????????????????????????????? | | ????????????????????????????? | | ????????????????????????????? | | ????????????????????????????? | | ????????????????????????????? | | ????????????????????????????? | | ????????????????????????????? | | ????????????????????????????? | | ????????????????????????????? | | ????????????????????????????? | | ????????????????????????????? | | ????????????????????????????? | | ????????????????????????????? | | ????????????????????????????? | | ???????????? ???????????????? | | ????????????????????????????? | | ????????????????????????????? | | ?????? ?????????????????????? | | ?? ?????????????????????????? | | ?????#########??????????????? | | ?????# T #???#??????????? | | ###### """ #?????????????## | | # # """ #??#??#???????# | | #"" # """ #??????######## | | #"Tg #? ?#???????# # | | #"" @####+############!| # | | # %g% % / | | # %#% ############! # | | # # #??????????# # | | # # #??????????####### | | # # #????????????????# | | ###### #????? ??????????# | | ?????# +? ??????????????# | | ??#??#### # ???????????????# | | ????????? # ??????????????## | | ????""??? #?##??????????????? | | #???????? #????#????????????? | | ??????? ? #?????????????????? | | ????????? ??????????????#### | | ????????? ??????????????# | | ????????? ??????????????# | | #?????????#??????????????# | | ?????????????????????????# | | ?????????????????????????# | | ?????????????????????????# | | ?????????????????????????# | | ?????????????????????????# | | ?????????????????????????# | | ?????????????????????????# | | ?????????????????????????# | +----------------------------------------------------+ Best States ------------- Heat Dissipation 25 Energy Generation 14 Energy Capacity 250 Matter Stores 300 Matter Capacity 300 Sight Range 16 Terrain Scan Range 16 Terrain Scan Density 10 Evasion (%) 55 Item Schematics ----------------- None Robot Schematics ------------------ None Fabricated ------------ Nothing Repaired ---------- Nothing Studied --------- None Alien Tech Used ----------------- None Achievements -------------- None Challenges ------------ None Game ------ Seed ChromionScatterJetlance Manual? 0 Play Time 00:05:37 Cumulative 37.8 hours Start 2026.07.24 @ 10:32:30 End 2026.07.24 @ 10:40:04 Sessions 1 Manual Loads 0 Difficulty Rogue Special Mode None Game No. 66 Rogue 66 Adventurer 0 Explorer 0 Win Type - Total 0 Types 0/0/0/0/0/0/0/0/0/0 Lore% 24 Gallery% 30 Achievement% 23 Wizard Run 0 Options --------- Layout 1 ASCII 0 Keyboard 0 Movement Mouse Keybinds 0 Fullscreen 1 Font 24/Smallcaps Map View 50x35 Zoom Use 0% Tactical HUD 1 Map Filters NONE Filters NONE Steam 1 RUN: 746a4edd-5eb9-44c8-b951-7fb25b20c1dd